bitfinex-derivatives/quotes_ETHF0:USTF0_20250403
["timestamp","ask_amount","ask_price","bid_price","bid_amount"]
[1743691116905,2.55503841,1768.4,1768.3,0.00847841]
[1743691117710,8.26283841,1768.4,1768.3,0.00847841]
[1743691117916,5.05503841,1768.4,1768.3,0.00847841]
[1743691118112,8.26283841,1768.4,1768.3,0.00847841]
[1743691118311,8.26283841,1768.4,1768.1,40.8]
[1743691118312,1.13129,1768.2,1768.1,40.8]
[1743691118517,4.802,1768.3,1767.8,3.2078]
[1743691118705,2.82856,1768.0,1767.6,1.13165]
[1743691118907,1.1316,1767.8,1767.7,1.13161]
[1743691119110,1.13155,1767.8,1767.7,40.8]
[1743691120321,2.62885,1767.8,1767.7,40.8]
[1743691121520,1.13161,1767.7,1767.6,0.00847841]
[1743691121820,10.63771,1767.7,1767.6,0.00847841]
[1743691122020,13.13771,1767.7,1767.6,0.00847841]
[1743691122418,1.1318,1767.4,1767.3,40.8]
[1743691122716,1.1318,1767.4,1766.6,8.65465]
[1743691122717,1.13225,1766.7,1766.6,1.13232]
[1743691123020,1.13223,1766.8,1766.6,41.93232]
[1743691123314,1.13225,1766.7,1766.6,40.8]
[1743691123516,10.26113,1767.1,1766.6,44.0078]
[1743691123821,0.00847841,1766.8,1766.7,4.34005]
[1743691124024,4.801,1767.4,1766.9,2.83028]
[1743691124223,2.53852,1767.4,1767.1,3.2078]
[1743691124425,1.4067,1767.4,1767.3,1.13187]
[1743691124620,3.2078,1767.5,1767.3,1.13187]
[1743691124822,1.4067,1767.6,1767.4,1.4406]
[1743691125020,2.53838,1767.6,1767.5,40.8]
[1743691125825,4.98158,1767.6,1767.5,40.8]
[1743691126022,2.6623,1767.6,1767.5,41.93174]
[1743691126221,2.53838,1767.6,1767.5,40.8]
[1743691126422,1.4067,1767.6,1767.5,40.8]
[1743691126728,2.53838,1767.6,1767.5,41.93174]
[1743691126920,0.00847841,1767.7,1767.5,41.93174]
[1743691126921,0.00847841,1767.7,1767.6,1.13168]
[1743691127222,1.14008841,1767.7,1767.6,1.13168]
[1743691127416,0.00847841,1767.7,1767.5,43.5276]
[1743691127612,0.00847841,1767.7,1767.6,1.13168]
[1743691127820,1.13168,1767.6,1767.5,40.8]
[1743691128013,1.48827841,1767.7,1767.5,40.8]
[1743691128228,0.00847841,1767.7,1767.6,1.13168]
[1743691128421,1.14008841,1767.7,1767.6,1.4485]
[1743691128815,1.13168,1767.6,1767.5,40.8]
[1743691129128,2.61148,1767.6,1767.5,40.8]
[1743691129328,1.1318,1767.4,1767.3,0.00847841]
[1743691129720,1.1318,1767.4,1767.3,40.80847841]
[1743691129920,2.6116,1767.4,1767.3,40.80847841]
[1743691131025,3.8288,1767.4,1767.3,40.80847841]
[1743691131216,1.13212,1766.9,1766.8,3.2078]
[1743691131416,2.82985,1767.2,1766.7,1.4752]
[1743691131622,1.13212,1766.9,1766.8,40.8]
[1743691132026,2.53712,1766.9,1766.8,40.8]
[1743691132526,6.25432,1766.9,1766.8,40.8]
[1743691132927,2.83065,1766.7,1766.3,2.6077]
[1743691133120,1.13251,1766.3,1766.2,4.34037]
[1743691133323,1.13251,1766.3,1766.2,44.0078]
[1743691133518,1.405,1766.4,1766.2,44.0078]
[1743691133722,1.405,1766.4,1766.3,1.13251]
[1743691133922,1.13239,1766.5,1766.4,1.1324]
[1743691134229,1.13245,1766.4,1766.2,45.14032]
[1743691134422,1.13243,1766.5,1766.4,1.13245]
[1743691134622,1.4669,1766.5,1766.4,1.13245]
[1743691135227,2.59934,1766.5,1766.4,1.13245]
[1743691135528,1.4669,1766.5,1766.4,1.13245]
[1743691135731,1.4669,1766.5,1766.2,45.5102]
[1743691135732,1.13246,1766.4,1766.2,45.5102]
[1743691135929,1.13245,1766.4,1766.2,46.64273]
[1743691136126,1.4669,1766.5,1766.3,1.13248]
[1743691136328,4.80847841,1766.7,1766.2,42.3024]
[1743691136623,0.00847841,1766.7,1766.6,1.13232]
[1743691136829,0.00847841,1766.7,1766.6,4.34012]
[1743691137032,0.00847841,1766.7,1766.6,6.84012]
[1743691137330,0.00847841,1766.7,1766.6,50.23062]
[1743691137531,1.13203,1767.1,1767.0,1.13206]
[1743691137726,3.81067,1767.2,1767.0,1.13206]
[1743691137927,2.6787,1767.2,1767.1,2.5463]
[1743691138129,1.13179,1767.5,1767.3,1.13184]
[1743691138428,1.13179,1767.5,1767.4,1.4143]
[1743691138620,1.5369,1767.5,1767.4,2.5461]
[1743691139330,2.66864,1767.5,1767.4,2.5461]
[1743691139630,2.66864,1767.5,1767.4,1.4143]
[1743691139934,1.14019841,1767.6,1767.4,2.54607]
[1743691140134,0.00847841,1767.6,1767.5,1.13174]
[1743691140334,1.1318,1767.4,1767.3,3.21627841]
[1743691140533,1.1318,1767.4,1767.3,4.34814841]
[1743691140834,1.51757841,1767.6,1767.3,3.21627841]
[1743691141134,0.00847841,1767.6,1767.5,1.13174]
[1743691141627,0.00847841,1767.6,1767.5,4.33954]
[1743691142033,0.00847841,1767.6,1767.5,5.49234]
[1743691143129,1.13119,1768.4,1767.6,2.82918]
[1743691143332,1.4328,1768.4,1767.8,3.2078]
[1743691143638,1.4328,1768.4,1767.9,1.13142]
[1743691143639,1.13142,1768.0,1767.9,1.13142]
[1743691143834,1.13142,1768.0,1767.9,43.40382]
[1743691144244,1.13142,1768.0,1767.9,40.8]
[1743691144833,1.13142,1768.0,1767.9,43.40388]
[1743691145034,0.00847841,1768.1,1768.0,1.13142]
[1743691145229,0.00847841,1768.1,1768.0,7.03482]
[1743691145732,0.00847841,1768.1,1768.0,47.83482]
[1743691146136,1.13123,1768.3,1768.2,1.13124]
[1743691146835,1.13129,1768.2,1768.1,1.1313]
[1743691147030,1.4328,1768.5,1768.0,46.7034]
[1743691147031,1.13128,1768.3,1768.2,1.13129]
[1743691147240,4.6406,1768.5,1768.2,1.13129]
[1743691147536,1.13963841,1768.4,1768.3,1.5261]
[1743691147839,0.00847841,1768.4,1768.3,5.86513]
[1743691148045,0.00847841,1768.4,1768.3,2.65733]
[1743691148226,1.13963841,1768.4,1768.3,2.65733]
[1743691148630,1.13963841,1768.4,1768.3,1.5261]
[1743691148828,0.00847841,1768.4,1768.3,2.65733]
[1743691149226,0.00847841,1768.4,1768.3,5.15733]
[1743691150230,0.00847841,1768.4,1768.3,2.65733]
[1743691150437,0.00847841,1768.4,1768.2,4.34751841]
[1743691150647,0.00847841,1768.4,1768.2,4.61767841]
[1743691150648,1.13123,1768.3,1768.2,4.61767841]
[1743691150838,2.61213,1768.3,1768.2,0.00847841]
[1743691151231,9.90713,1768.3,1768.2,0.00847841]
[1743691151543,1.13155,1767.8,1767.7,1.2103]
[1743691151839,6.03604,1768.2,1767.7,1.2103]
[1743691152044,1.4809,1768.1,1767.8,2.53289]
[1743691152346,1.4809,1768.1,1768.0,1.13142]
[1743691152541,5.92627,1768.3,1767.9,7.52321]
[1743691152737,5.92627,1768.3,1768.1,4.33916]
[1743691152738,1.435,1768.2,1768.1,4.33916]
[1743691153044,1.13965841,1768.4,1768.3,1.13123]
[1743691153242,1.13965841,1768.4,1768.2,2.61794]
[1743691153243,1.13123,1768.3,1768.2,2.61794]
[1743691153543,1.13970841,1768.4,1768.3,1.13123]
[1743691153943,0.00847841,1768.4,1768.3,4.33903]
[1743691154441,0.00847841,1768.4,1768.2,1.4867]
[1743691154442,1.13123,1768.3,1768.2,2.61797]
[1743691154642,1.13129,1768.2,1768.1,7.11861]
[1743691154839,1.13129,1768.2,1768.1,5.92531]
[1743691155232,1.13129,1768.2,1768.1,46.72531]
[1743691155434,1.13129,1768.2,1768.1,41.93136]
[1743691156245,1.435,1768.3,1768.2,1.13129]
[1743691156446,2.56623,1768.3,1768.2,2.64749]
[1743691156746,1.13129,1768.2,1768.1,41.9313]
[1743691156943,1.4714,1768.2,1768.1,43.4475]
[1743691157145,2.60269,1768.2,1768.1,43.4475]
[1743691157345,1.4714,1768.2,1768.1,43.4475]
[1743691158039,1.13969841,1768.4,1768.3,1.13123]
[1743691158236,0.00847841,1768.4,1768.3,1.13123]
[1743691158546,0.00847841,1768.4,1768.3,3.63123]
[1743691158744,3.55254,1769.1,1768.4,2.82792]
[1743691158946,1.13087,1768.9,1768.8,1.13089]
[1743691159351,7.46026,1769.0,1768.6,1.13101]
[1743691159549,1.13097,1768.7,1768.6,1.13101]
[1743691159747,1.4255,1768.8,1768.6,1.13101]
[1743691159941,2.55646,1768.8,1768.6,1.13101]
[1743691160549,2.55646,1768.8,1768.3,11.3328]
[1743691160848,1.13114,1768.5,1768.3,2.301]
[1743691161045,4.25292,1768.8,1768.1,44.0078]
[1743691161046,2.8276,1768.6,1768.1,44.0078]
[1743691161242,1.13129,1768.2,1768.1,46.53932]
[1743691161446,1.13129,1768.2,1768.1,5.73932]
[1743691162044,1.4255,1768.4,1768.3,1.13123]
[1743691162250,3.2078,1768.6,1768.5,1.1311]
[1743691162944,4.7199,1768.6,1768.5,1.1311]
[1743691163144,1.13098,1768.7,1768.4,4.23641]
[1743691163346,1.5121,1768.7,1768.4,1.4086]
[1743691163548,1.13108,1768.6,1768.4,4.6164]
[1743691163851,2.64311,1768.7,1768.4,4.6164]
[1743691164045,1.5121,1768.7,1768.4,4.6164]
[1743691164243,1.13105,1768.6,1768.5,1.13106]
[1743691164544,1.5121,1768.7,1768.6,1.13104]
[1743691164746,3.71239,1768.9,1768.8,1.13091]
[1743691164951,0.00847841,1769.0,1768.9,1.13084]
[1743691165251,1.13925841,1769.0,1768.9,1.13084]
[1743691165552,0.00847841,1769.0,1768.8,1.4466]
[1743691165848,0.00847841,1769.0,1768.9,1.13084]
[1743691166146,1.13925841,1769.0,1768.9,1.13084]
[1743691166348,2.58125841,1769.0,1768.9,1.13084]
[1743691166743,0.00847841,1769.0,1768.9,1.13084]
[1743691167848,1.51407841,1769.0,1768.9,1.13084]
[1743691168052,1.51407841,1769.0,1768.8,1.4466]
[1743691168348,0.00847841,1769.0,1768.8,1.4466]
[1743691168541,2.63649,1768.9,1768.8,1.13091]
[1743691168747,2.63649,1768.9,1768.8,2.64461]
[1743691168941,1.5056,1768.9,1768.8,2.64461]
[1743691169343,1.13928841,1769.0,1768.9,1.13084]
[1743691169344,0.00847841,1769.0,1768.9,1.13084]
[1743691169849,0.00847841,1769.0,1768.9,4.33864]
[1743691170050,0.00847841,1769.0,1768.9,2.64454]
[1743691170250,0.00847841,1769.0,1768.9,46.65234]
[1743691171253,0.00847841,1769.0,1768.9,43.44454]
[1743691172144,0.00847841,1769.0,1768.9,46.65234]
[1743691173751,1.4183,1769.4,1769.3,1.13059]
[1743691174149,2.54883,1769.4,1769.3,1.13059]
[1743691174348,1.4183,1769.4,1769.3,1.13059]
[1743691174855,2.54883,1769.4,1769.3,1.13059]
[1743691175243,1.4183,1769.4,1769.3,1.13059]
[1743691175955,1.13059,1769.3,1769.2,4.34688841]
[1743691176355,1.13059,1769.3,1769.2,0.00847841]
[1743691176654,1.13059,1769.3,1769.2,1.13912841]
[1743691177052,3.63059,1769.3,1769.2,0.00847841]
[1743691177553,1.1309,1768.9,1768.8,1.13086]
[1743691177753,1.1309,1768.9,1768.8,41.93086]
[1743691178158,3.81873,1769.0,1768.9,1.13084]
[1743691178861,1.2094,1769.2,1769.1,1.13072]
[1743691179050,2.6995,1769.2,1769.1,1.13072]
[1743691179552,1.4901,1769.2,1769.1,1.13072]
[1743691179955,1.1529,1769.4,1769.0,4.35202]
[1743691180257,1.3911,1769.3,1769.2,1.13063]
[1743691180851,2.52169,1769.3,1769.2,1.13063]
[1743691181645,1.3911,1769.3,1769.2,1.13063]
[1743691181848,0.00847841,1769.5,1769.4,1.13053]
[1743691182460,1.13079,1769.0,1768.9,1.1308]
[1743691182752,1.1262,1769.4,1768.9,6.03492]
[1743691182958,1.5288,1769.3,1768.9,1.146]
[1743691183259,1.13075,1769.1,1769.0,1.13075]
[1743691183852,1.13067,1769.2,1768.9,4.3538]
[1743691184150,1.5288,1769.1,1769.0,1.13078]
[1743691184355,1.13898841,1769.5,1769.3,1.13054]
[1743691184554,2.66778841,1769.5,1769.3,1.13054]
[1743691184751,1.53727841,1769.5,1769.4,1.13053]
[1743691185153,2.66773841,1769.5,1769.4,1.13053]
[1743691185355,1.53727841,1769.5,1769.4,1.13053]
[1743691186161,2.66776841,1769.5,1769.3,1.13055]
[1743691186557,2.66776841,1769.5,1769.4,1.13053]
[1743691186855,1.53727841,1769.5,1769.4,1.13053]
[1743691187159,2.66773841,1769.5,1769.2,3.2078]
[1743691187553,1.53727841,1769.5,1769.4,1.13053]
[1743691188960,0.00847841,1769.5,1769.4,1.13053]
[1743691189158,0.00847841,1769.5,1769.4,4.33833]
[1743691191555,1.394,1769.8,1769.7,1.13033]
[1743691192759,2.52431,1769.8,1769.6,4.33815]
[1743691193060,2.52431,1769.8,1769.7,1.13033]
[1743691193261,2.52431,1769.8,1769.6,3.2078]
[1743691193462,2.52431,1769.8,1769.7,1.13033]
[1743691193664,1.13033,1769.7,1769.6,4.33816]
[1743691193865,1.13047,1769.5,1769.3,3.2078]
[1743691194068,2.66123,1769.4,1769.3,1.13059]
[1743691194362,3.87633,1769.4,1769.3,1.13059]
[1743691194755,2.7458,1769.4,1769.3,1.13059]
[1743691195161,1.5307,1769.4,1769.3,1.13059]
[1743691195558,1.5307,1769.4,1769.3,4.33839]
[1743691196964,1.5307,1769.4,1769.3,1.13059]
[1743691197563,1.5307,1769.4,1769.3,4.33839]
[1743691197866,1.5307,1769.4,1769.3,1.13059]
[1743691198355,1.5307,1769.4,1769.3,4.33839]
[1743691198560,1.5307,1769.4,1769.3,1.13059]
[1743691199567,1.5307,1769.4,1769.1,4.688]
[1743691199568,1.1306,1769.3,1769.1,4.688]
[1743691199767,1.4762,1769.2,1769.1,5.81872]
[1743691199964,1.4762,1769.2,1769.0,3.2078]
[1743691200166,1.4762,1769.2,1769.1,1.13072]
[1743691200861,1.2206,1769.4,1769.3,1.13059]
[1743691201061,2.7143,1769.4,1769.3,1.13059]
[1743691201470,1.4937,1769.4,1769.3,1.13059]
[1743691201763,2.4432,1769.7,1769.6,1.1304]
[1743691201970,2.7088,1769.7,1769.6,1.1304]
[1743691202164,3.21627841,1769.9,1769.8,1.13027]
[1743691202165,0.00847841,1769.9,1769.8,1.13027]
[1743691202468,1.50217841,1769.9,1769.8,4.33807]
[1743691202671,1.50217841,1769.9,1769.7,2.63538]
[1743691202863,2.63241841,1769.9,1769.8,40.8]
[1743691203060,1.50217841,1769.9,1769.8,41.93027]
[1743691203364,2.63238841,1769.9,1769.8,40.8]
[1743691203569,1.50217841,1769.9,1769.8,41.93027]
[1743691203773,2.63238841,1769.9,1769.8,41.93027]
[1743691204578,1.50217841,1769.9,1769.8,41.93027]
[1743691205469,1.13032,1769.8,1769.7,1.1303]
[1743691205670,1.13044,1769.6,1769.5,1.13042]
[1743691205976,2.6341,1769.7,1769.3,1.436]
[1743691206269,1.4946,1769.5,1769.4,1.13053]
[1743691206675,2.62506,1769.5,1769.4,1.13053]
[1743691207063,2.62506,1769.5,1769.3,40.8]
[1743691207064,1.13053,1769.4,1769.3,41.93055]
[1743691207271,3.79243,1769.4,1769.3,41.93055]
[1743691207676,1.13077,1769.1,1769.0,1.13074]
[1743691207867,1.13081,1769.0,1768.9,1.13079]
[1743691208067,1.13084,1768.9,1768.8,0.00847841]
[1743691208372,1.1219,1768.9,1768.8,1.13938841]
[1743691208569,3.79274,1768.9,1768.8,1.13938841]
[1743691208970,2.6619,1768.9,1768.8,1.13938841]
[1743691209170,1.2265,1769.0,1768.9,1.13084]
[1743691209375,1.54,1769.1,1769.0,1.13078]
[1743691209576,1.1219,1769.3,1769.2,1.13065]
[1743691209772,5.90556,1769.4,1769.3,1.13059]
[1743691210078,1.13056,1769.4,1769.2,1.13061]
[1743691210275,1.13059,1769.3,1769.2,1.13061]
[1743691210466,1.222,1769.5,1769.1,6.03445]
[1743691210666,1.222,1769.5,1769.3,1.13054]
[1743691210871,1.222,1769.5,1769.0,7.60095]
[1743691210872,1.13059,1769.3,1769.2,1.5306]
[1743691211072,2.7163,1769.5,1769.2,40.8]
[1743691211270,3.84676,1769.5,1769.4,1.13053]
[1743691211474,1.13053,1769.4,1769.3,2.66116]
[1743691211772,1.4943,1769.4,1769.0,1.13076]
[1743691211974,1.4943,1769.4,1768.9,1.2086]
[1743691212177,1.13059,1769.3,1769.2,1.1306]
[1743691212474,1.13072,1769.1,1769.0,2.66136]
[1743691212679,1.13078,1769.0,1768.9,1.2086]
[1743691212875,1.1307,1769.2,1769.1,1.1307]
[1743691213073,2.60885,1769.2,1769.1,40.8]
[1743691213480,1.4782,1769.2,1768.9,2.3394]
[1743691213679,1.13078,1769.0,1768.9,2.3394]
[1743691213871,2.60889,1769.2,1769.1,1.13072]
[1743691214073,1.13072,1769.1,1769.0,2.65833]
[1743691214274,2.60892,1769.1,1769.0,1.5276]
[1743691214474,1.13078,1769.0,1768.9,41.9308]
[1743691214683,2.60898,1769.0,1768.9,43.4584]
[1743691214877,2.60898,1769.0,1768.9,40.8]
[1743691215578,6.29018,1769.0,1768.9,40.8]
[1743691216871,2.6594,1769.0,1768.9,41.93084]
[1743691217076,1.13051,1769.5,1769.4,1.13053]
[1743691217687,1.13045,1769.6,1769.5,1.13045]
[1743691218073,1.13059,1769.3,1769.2,3.2078]
[1743691218282,1.13049,1769.5,1769.4,1.13049]
[1743691218476,1.4368,1769.6,1769.3,1.4238]
[1743691218775,1.13035,1769.7,1769.6,1.1304]
[1743691218976,1.1304,1769.6,1769.5,2.61773]
[1743691219188,1.4943,1769.7,1769.6,1.1304]
[1743691219487,1.4943,1769.7,1769.6,4.3382]
[1743691219685,1.1812,1769.8,1769.7,1.13033]
[1743691219879,2.6755,1769.8,1769.7,1.13033]
[1743691220184,0.00847841,1769.9,1769.8,1.13027]
[1743691220382,1.50277841,1769.9,1769.8,1.13027]
[1743691220588,0.00847841,1769.9,1769.8,1.13027]
[1743691220884,0.00847841,1769.9,1769.8,4.33807]
[1743691221187,0.00847841,1769.9,1769.8,1.13027]
[1743691221390,1.50277841,1769.9,1769.8,1.13027]
[1743691221781,2.63298841,1769.9,1769.7,1.4873]
[1743691221987,1.50277841,1769.9,1769.8,1.13027]
[1743691222289,0.00847841,1769.9,1769.8,4.33807]
[1743691225391,3.2078,1770.9,1770.2,2.825]
[1743691225583,1.4934,1770.6,1770.5,1.12982]
[1743691225788,2.62316,1770.6,1770.5,40.8]
[1743691226188,1.4934,1770.6,1770.0,7.9778]
[1743691226490,6.89403841,1770.5,1770.1,0.00847841]
[1743691226685,1.13024,1769.9,1769.6,3.2078]
[1743691226886,4.77,1770.3,1769.7,1.5114]
[1743691227093,4.77,1770.3,1770.1,1.13004]
[1743691227385,1.1301,1770.1,1769.8,3.2078]
[1743691227593,4.021,1770.4,1769.8,3.2078]
[1743691227794,1.13006,1770.2,1769.9,1.95257]
[1743691227986,1.13006,1770.2,1770.0,1.13014]
[1743691228182,4.021,1770.4,1769.9,2.266]
[1743691228183,3.2078,1770.4,1769.9,2.266]
[1743691228397,1.13016,1770.0,1769.8,4.34651841]
[1743691228697,1.4888,1769.9,1769.8,5.79011841]
[1743691228989,2.61901,1769.9,1769.8,1.13871841]
[1743691229190,2.61901,1769.9,1769.8,0.00847841]
[1743691229396,5.11901,1769.9,1769.8,0.00847841]
[1743691229887,6.83541,1769.9,1769.8,0.00847841]
[1743691230495,6.83541,1769.9,1769.4,2.57408]
[1743691230496,8.53074,1769.9,1769.4,2.57408]
[1743691230697,1.13062,1769.3,1769.2,1.13065]
[1743691230894,6.03383,1769.6,1769.1,2.57428]
[1743691231089,1.13064,1769.3,1769.2,1.13065]
[1743691231394,2.3558,1769.5,1769.4,1.13053]
[1743691231600,2.3558,1769.5,1769.1,1.45207841]
[1743691231601,1.13063,1769.3,1769.1,1.45207841]
[1743691231793,0.89007841,1769.4,1769.1,2.58276841]
[1743691231990,1.13063,1769.3,1769.2,1.13065]
[1743691232300,2.29887841,1769.4,1769.1,0.00847841]
[1743691232496,2.53945,1769.2,1769.1,0.00847841]
[1743691233705,1.4088,1769.2,1769.1,0.00847841]
[1743691234094,9.99541841,1769.4,1769.1,0.00847841]
[1743691234294,1.13064,1769.3,1769.1,2.59825841]
[1743691234501,1.13064,1769.3,1769.2,1.13065]
[1743691234502,2.57479,1769.3,1769.2,1.13065]
[1743691234707,2.57479,1769.3,1769.2,2.58975]
[1743691234900,2.57479,1769.3,1769.2,1.4591]
[1743691235104,1.4442,1769.3,1769.2,2.58975]
[1743691235304,1.13065,1769.2,1769.1,0.00847841]
[1743691235805,6.83845,1769.2,1769.1,0.00847841]
[1743691236306,1.13065,1769.2,1769.1,0.00847841]
[1743691237207,2.57485,1769.2,1769.1,1.13919841]
[1743691237406,2.57485,1769.2,1769.1,0.00847841]
[1743691237601,8.28265,1769.2,1769.1,0.00847841]
[1743691237905,5.07485,1769.2,1769.1,0.00847841]
[1743691238108,2.57485,1769.2,1769.1,0.00847841]
[1743691238808,5.07485,1769.2,1769.1,0.00847841]
[1743691239004,8.28265,1769.2,1769.1,0.00847841]
[1743691240008,5.78265,1769.2,1769.1,0.00847841]
[1743691240207,1.4442,1769.2,1769.1,1.13919841]
[1743691240409,2.57485,1769.2,1769.1,1.13919841]
[1743691240901,2.57485,1769.2,1769.1,0.00847841]
[1743691243210,1.4442,1769.2,1769.1,1.13919841]
[1743691243610,2.57485,1769.2,1769.1,1.13919841]
[1743691243809,2.57485,1769.2,1769.1,0.00847841]
[1743691247612,1.13091,1768.8,1768.7,40.8]
[1743691247914,1.1311,1768.5,1768.4,2.52973]
[1743691248316,1.1311,1768.5,1768.4,43.32973]
[1743691249216,1.1311,1768.5,1768.4,42.1986]
[1743691249420,6.8389,1768.5,1768.4,40.8]
[1743691249715,1.13116,1768.4,1768.3,0.00847841]
[1743691249914,2.59196,1768.4,1768.3,0.00847841]
[1743691250117,5.09196,1768.4,1768.3,0.00847841]
[1743691250305,2.59196,1768.4,1768.3,0.00847841]
[1743691251114,5.09196,1768.4,1768.3,0.00847841]
[1743691253612,5.09196,1768.4,1768.3,8.41e-06]
[1743691253812,11.05596,1768.4,1768.3,8.41e-06]
[1743691254020,1.13161,1767.7,1767.6,1.4914]
[1743691254314,1.13173,1767.6,1767.5,1.13172]
[1743691254722,1.13173,1767.6,1767.5,2.62312]
[1743691255213,1.13168,1767.6,1767.5,2.6231]
[1743691255608,1.13168,1767.6,1767.5,1.4914]
[1743691255812,1.13168,1767.6,1767.4,41.63637841]
[1743691255813,1.13174,1767.5,1767.4,41.63637841]
[1743691256419,1.13174,1767.5,1767.4,40.80847841]
[1743691257118,1.13174,1767.5,1767.4,43.43064841]
[1743691257319,1.13174,1767.5,1767.4,42.29887841]
[1743691258416,3.63174,1767.5,1767.4,40.80847841]
[1743691258615,1.13174,1767.5,1767.4,40.80847841]
[1743691258826,2.63154,1767.5,1767.4,40.80847841]
[1743691259521,2.63154,1767.5,1767.4,42.22117841]
[1743691259719,5.13154,1767.5,1767.4,0.00847841]
[1743691260520,2.63154,1767.5,1767.4,0.00847841]
[1743691261419,5.13154,1767.5,1767.4,0.00847841]
[1743691262020,1.4998,1767.5,1767.4,1.14039841]
[1743691262518,2.63165,1767.5,1767.4,0.00847841]
[1743691263214,5.13165,1767.5,1767.4,0.00847841]
[1743691263923,2.63165,1767.5,1767.4,0.00847841]
[1743691264628,5.13165,1767.5,1767.4,0.00847841]
[1743691264816,5.13165,1767.5,1766.5,5.824]
[1743691264817,1.13224,1766.9,1766.8,0.8793]
[1743691265014,3.2078,1767.0,1766.3,7.9708]
[1743691265212,1.13247,1766.6,1766.4,43.2159]
[1743691266120,2.63949,1766.5,1766.4,40.8]
[1743691266315,7.40349,1766.5,1766.4,40.8]
[1743691267016,7.40349,1766.5,1766.4,1.5366]
[1743691267224,7.40349,1766.5,1766.0,0.8793]
[1743691267225,1.13269,1766.2,1766.0,0.8793]
[1743691267417,1.13269,1766.2,1766.1,42.3366]
[1743691267820,2.66919,1766.2,1766.1,42.3366]
[1743691268223,2.66919,1766.2,1766.1,1.5366]
[1743691268420,3.47299,1766.2,1765.8,1.13294]
[1743691268620,8.23599,1766.2,1765.9,1.4369]
[1743691268921,4.763,1766.2,1765.9,42.2369]
[1743691269121,4.763,1766.2,1766.0,1.7018]
[1743691269424,3.2078,1766.5,1766.1,1.4369]
[1743691269928,1.13264,1766.3,1766.1,1.4369]
[1743691270125,1.13269,1766.2,1766.1,1.4369]
[1743691270623,4.764,1766.4,1766.1,1.4369]
[1743691270832,5.89656,1766.4,1766.1,2.56963]
[1743691271019,4.764,1766.4,1766.1,1.4369]
[1743691271224,4.764,1766.4,1766.2,1.5433]
[1743691271428,5.89656,1766.4,1766.2,1.5433]
[1743691271623,4.764,1766.4,1766.2,1.5433]
[1743691271830,3.2078,1766.5,1766.2,1.5433]
[1743691272022,3.2078,1766.5,1766.4,1.13256]
[1743691272222,4.02007841,1766.7,1766.5,1.13246]
[1743691272422,4.02007841,1766.7,1766.6,1.5433]
[1743691272633,6.67584841,1766.7,1766.6,1.5433]
[1743691273128,5.54347841,1766.7,1766.6,1.5433]
[1743691273329,3.21627841,1766.7,1766.6,1.5433]
[1743691273632,0.00847841,1766.7,1766.6,2.67573]
[1743691273931,3.2078,1767.4,1766.6,12.0141]
[1743691274117,3.2078,1767.4,1767.3,1.13198]
[1743691274318,3.2078,1767.4,1767.2,1.132]
[1743691274517,3.2078,1767.4,1767.3,41.93198]
[1743691274722,1.4751,1767.7,1767.5,1.13183]
[1743691274925,1.13181,1767.6,1767.4,1.5198]
[1743691275135,1.13181,1767.6,1767.4,2.6517]
[1743691275329,4.34795841,1767.8,1767.4,1.5198]
[1743691275632,4.34795841,1767.8,1767.6,1.13178]
[1743691276119,5.93619338,1767.8,1767.6,1.13178]
[1743691276421,3.32941338,1767.8,1767.4,4.3496]
[1743691276623,3.2078,1767.5,1767.4,1.5198]
[1743691276825,3.2078,1767.7,1767.4,1.5198]
[1743691277025,9.5136,1767.7,1767.4,1.5198]
[1743691277824,0.12161338,1767.8,1767.7,1.13173]
[1743691278730,0.12161338,1767.8,1767.7,1.97383]
[1743691280728,0.12161338,1767.8,1767.7,5.18163]
[1743691280936,0.12161338,1767.8,1767.7,1.97383]
[1743691281329,0.00847841,1767.8,1767.7,1.13173]
[1743691281836,1.54887841,1767.8,1767.7,1.13173]
[1743691282232,0.00847841,1767.8,1767.7,1.13173]
[1743691283035,1.13173,1767.7,1767.6,2.57305]
[1743691283238,2.58346841,1767.8,1767.7,1.13173]
[1743691283538,1.13173,1767.7,1767.6,2.57304]
[1743691283735,2.58348841,1767.8,1767.6,1.4413]
[1743691283939,0.00847841,1767.8,1767.7,1.13173]
[1743691284332,0.00847841,1767.8,1767.7,6.83953]
[1743691284637,4.759,1768.4,1768.3,1.13134]
[1743691286127,1.45177841,1768.5,1768.2,1.53547841]
[1743691286431,0.00847841,1768.5,1768.4,1.13128]
[1743691286632,1.13968841,1768.5,1768.4,1.13128]
[1743691286832,1.13968841,1768.5,1768.4,1.527]
[1743691287440,0.00847841,1768.5,1768.4,2.65828]
[1743691287646,1.13968841,1768.5,1768.4,1.527]
[1743691287941,1.13968841,1768.5,1768.4,2.65828]
[1743691288245,0.00847841,1768.5,1768.4,2.65828]
[1743691288840,1.13968841,1768.5,1768.4,2.65828]
[1743691289045,1.13968841,1768.5,1768.4,1.527]
[1743691289235,0.00847841,1768.5,1768.4,2.65828]
[1743691290041,0.00847841,1768.5,1768.4,43.45828]
[1743691291042,8.7545,1768.9,1768.7,1.13109]
[1743691291043,1.13104,1768.8,1768.7,1.13109]
[1743691291432,1.13107,1768.8,1768.7,1.13107]
[1743691292238,0.00847841,1768.9,1768.8,1.13102]
[1743691292735,1.13081,1769.2,1769.1,1.13083]
[1743691292937,1.13073,1769.3,1769.2,1.13077]
[1743691293142,0.8332,1769.4,1769.2,1.13074]
[1743691293341,3.38679,1769.4,1769.3,1.448]
[1743691294741,1.1307,1769.3,1769.2,0.00847841]
[1743691294941,2.5536,1769.3,1769.2,0.00847841]
[1743691295533,1.1307,1769.3,1769.2,1.13920841]